[Event "Titled Tuesday Blitz January 03 Late 2023"]
[White "Altman, Joshua"]
[Black "Kaganskiy, Gleb"]
[WhiteFideId "426210"]
[BlackFideId "4132025"]
[WhiteElo "2120"]
[BlackElo "2205"]
[Result "1-0"]
[Round "04"]
[TimeControl "180+2"]
[Date "2023.01.03"]
[WhiteClock "0:00:20"]
[BlackClock "0:00:11"]

1. d4 {[%clk 0:03:00]}  Nf6 {[%clk 0:02:58]} 2. c4 {[%clk 0:03:00]}  e6 {[%clk 0:02:56]} 3. Nf3 {[%clk 0:03:00]}  d5 {[%clk 0:02:56]} 4. Nc3 {[%clk 0:03:00]}  c5 {[%clk 0:02:56]} 5. cxd5 {[%clk 0:03:00]}  cxd4 {[%clk 0:02:55]} 6. Nxd4 {[%clk 0:02:57]}  Nxd5 {[%clk 0:02:50]} 7. e4 {[%clk 0:02:40]}  Nxc3 {[%clk 0:02:49]} 8. bxc3 {[%clk 0:02:41]}  Bd7 {[%clk 0:02:49]} 9. Bd3 {[%clk 0:02:37]}  Nc6 {[%clk 0:02:49]} 10. O-O {[%clk 0:02:36]}  Be7 {[%clk 0:02:48]} 11. Be3 {[%clk 0:02:35]}  O-O {[%clk 0:02:48]} 12. Rb1 {[%clk 0:02:34]}  b6 {[%clk 0:02:46]} 13. Qe2 {[%clk 0:02:22]}  e5 {[%clk 0:02:36]} 14. Nf5 {[%clk 0:02:17]}  Bxf5 {[%clk 0:02:31]} 15. exf5 {[%clk 0:02:18]}  Bg5 {[%clk 0:02:22]} 16. Be4 {[%clk 0:02:13]}  Rc8 {[%clk 0:02:20]} 17. Rbd1 {[%clk 0:02:02]}  Qf6 {[%clk 0:02:20]} 18. Bxg5 {[%clk 0:01:45]}  Qxg5 {[%clk 0:02:21]} 19. Rd6 {[%clk 0:01:44]}  Na5 {[%clk 0:02:14]} 20. f6 {[%clk 0:01:36]}  g6 {[%clk 0:02:05]} 21. Bd5 {[%clk 0:01:25]}  Rcd8 {[%clk 0:01:56]} 22. Rxd8 {[%clk 0:01:22]}  Rxd8 {[%clk 0:01:55]} 23. Qf3 {[%clk 0:01:19]}  Qf4 {[%clk 0:01:43]} 24. Re1 {[%clk 0:00:54]}  Qxf3 {[%clk 0:01:29]} 25. Bxf3 {[%clk 0:00:55]}  Nc4 {[%clk 0:01:17]} 26. g3 {[%clk 0:00:54]}  Rd6 {[%clk 0:01:10]} 27. Be2 {[%clk 0:00:52]}  Na5 {[%clk 0:00:59]} 28. Bb5 {[%clk 0:00:49]}  Rxf6 {[%clk 0:00:58]} 29. Rxe5 {[%clk 0:00:48]}  Re6 {[%clk 0:00:42]} 30. Rd5 {[%clk 0:00:40]}  Re1+ {[%clk 0:00:36]} 31. Kg2 {[%clk 0:00:40]}  Ra1 {[%clk 0:00:37]} 32. Rd7 {[%clk 0:00:37]}  Rxa2 {[%clk 0:00:34]} 33. Rxa7 {[%clk 0:00:37]}  Rc2 {[%clk 0:00:34]} 34. Be8 {[%clk 0:00:34]}  Rxc3 {[%clk 0:00:23]} 35. Bxf7+ {[%clk 0:00:34]}  Kg7 {[%clk 0:00:20]} 36. Bd5+ {[%clk 0:00:34]}  Kf6 {[%clk 0:00:20]} 37. Rxh7 {[%clk 0:00:33]}  Rc5 {[%clk 0:00:16]} 38. Rf7+ {[%clk 0:00:28]}  Ke5 {[%clk 0:00:16]} 39. Bf3 {[%clk 0:00:28]}  Nc4 {[%clk 0:00:15]} 40. Rg7 {[%clk 0:00:27]}  Kf6 {[%clk 0:00:15]} 41. Rb7 {[%clk 0:00:27]}  Ra5 {[%clk 0:00:13]} 42. Be2 {[%clk 0:00:25]}  Ne5 {[%clk 0:00:08]} 43. Rxb6+ {[%clk 0:00:25]}  Kg7 {[%clk 0:00:09]} 44. Re6 {[%clk 0:00:23]}  Kf7 {[%clk 0:00:09]} 45. Rb6 {[%clk 0:00:23]}  Kg7 {[%clk 0:00:09]} 46. h4 {[%clk 0:00:22]}  Rc5 {[%clk 0:00:08]} 47. Bf3 {[%clk 0:00:19]}  Ra5 {[%clk 0:00:08]} 48. Be4 {[%clk 0:00:19]}  Rc5 {[%clk 0:00:08]} 49. f4 {[%clk 0:00:20]}  Nc4 {[%clk 0:00:05]} 50. Rxg6+ {[%clk 0:00:18]}  Kf7 {[%clk 0:00:06]} 51. Rg5 {[%clk 0:00:16]}  Ne3+ {[%clk 0:00:06]} 52. Kf3 {[%clk 0:00:16]}  Rc3 {[%clk 0:00:07]} 53. Ke2 {[%clk 0:00:16]}  Nc4 {[%clk 0:00:05]} 54. Bd5+ {[%clk 0:00:15]}  Kf6 {[%clk 0:00:05]} 55. Bxc4 {[%clk 0:00:16]}  Rxc4 {[%clk 0:00:05]} 56. Kf3 {[%clk 0:00:17]}  Rc3+ {[%clk 0:00:06]} 57. Kg4 {[%clk 0:00:17]}  Ra3 {[%clk 0:00:06]} 58. h5 {[%clk 0:00:18]}  Rb3 {[%clk 0:00:06]} 59. Rg6+ {[%clk 0:00:18]}  Kf7 {[%clk 0:00:06]} 60. Kh4 {[%clk 0:00:19]}  Rb8 {[%clk 0:00:07]} 61. g4 {[%clk 0:00:19]}  Rh8 {[%clk 0:00:07]} 62. Kg5 {[%clk 0:00:20]}  Rc8 {[%clk 0:00:07]} 63. f5 {[%clk 0:00:20]}  Rc5 {[%clk 0:00:08]} 64. h6 {[%clk 0:00:20]}  Rc8 {[%clk 0:00:09]} 65. h7 {[%clk 0:00:20]}  Rh8 {[%clk 0:00:10]} 66. Rh6 {[%clk 0:00:21]}  Kg7 {[%clk 0:00:10]} 67. Kh5 {[%clk 0:00:21]}  Kf7 {[%clk 0:00:09]} 68. g5 {[%clk 0:00:21]}  Kg7 {[%clk 0:00:10]} 69. g6 {[%clk 0:00:20]}  Kf8 {[%clk 0:00:11]} 70. f6 {[%clk 0:00:20]} 1-0


[Site "https://www.chess.com"]

[Event "Titled Tuesday Blitz January 03 Late 2023"]
[White "Jorajuria Mendoza, Algol"]
[Black "gshwbedhkhd"]
[WhiteFideId "5128897"]
[WhiteElo "2069"]
[BlackElo "2511"]
[Result "0-1"]
[Round "04"]
[TimeControl "180+2"]
[Date "2023.01.03"]
[WhiteClock "0:00:07"]
[BlackClock "0:00:31"]

1. e4 {[%clk 0:03:00]}  c5 {[%clk 0:02:58]} 2. Nf3 {[%clk 0:03:00]}  e6 {[%clk 0:02:58]} 3. d4 {[%clk 0:03:00]}  cxd4 {[%clk 0:02:59]} 4. Nxd4 {[%clk 0:03:00]}  Nf6 {[%clk 0:02:59]} 5. Bd3 {[%clk 0:02:58]}  Nc6 {[%clk 0:02:59]} 6. Nxc6 {[%clk 0:02:58]}  bxc6 {[%clk 0:03:00]} 7. O-O {[%clk 0:02:58]}  d5 {[%clk 0:03:00]} 8. exd5 {[%clk 0:02:57]}  cxd5 {[%clk 0:03:00]} 9. Re1 {[%clk 0:02:54]}  Be7 {[%clk 0:03:00]} 10. c4 {[%clk 0:02:49]}  Bb7 {[%clk 0:02:42]} 11. Qa4+ {[%clk 0:02:46]}  Qd7 {[%clk 0:02:39]} 12. Qxd7+ {[%clk 0:02:46]}  Nxd7 {[%clk 0:02:38]} 13. cxd5 {[%clk 0:02:47]}  Bxd5 {[%clk 0:02:38]} 14. Nc3 {[%clk 0:02:47]}  Bb7 {[%clk 0:02:36]} 15. Bf4 {[%clk 0:02:45]}  O-O {[%clk 0:02:25]} 16. Rad1 {[%clk 0:02:45]}  Nf6 {[%clk 0:02:22]} 17. h3 {[%clk 0:02:30]}  a6 {[%clk 0:02:06]} 18. Be5 {[%clk 0:02:21]}  Rfd8 {[%clk 0:02:03]} 19. Bc2 {[%clk 0:02:12]}  Nd5 {[%clk 0:01:56]} 20. Bb3 {[%clk 0:01:40]}  Nb4 {[%clk 0:01:41]} 21. Bc7 {[%clk 0:01:05]}  Rdc8 {[%clk 0:01:33]} 22. Rd7 {[%clk 0:00:57]}  Bf8 {[%clk 0:01:29]} 23. Ba5 {[%clk 0:00:34]}  Bc6 {[%clk 0:01:16]} 24. Rd2 {[%clk 0:00:33]}  Be8 {[%clk 0:01:10]} 25. Re4 {[%clk 0:00:32]}  Nc6 {[%clk 0:01:08]} 26. Bb6 {[%clk 0:00:31]}  Rab8 {[%clk 0:01:06]} 27. Be3 {[%clk 0:00:31]}  Na5 {[%clk 0:01:00]} 28. Ba4 {[%clk 0:00:26]}  Nc4 {[%clk 0:00:50]} 29. Rxc4 {[%clk 0:00:09]}  Rxc4 {[%clk 0:00:48]} 30. Bxe8 {[%clk 0:00:10]}  Rxe8 {[%clk 0:00:48]} 31. Kf1 {[%clk 0:00:09]}  f5 {[%clk 0:00:45]} 32. Ke2 {[%clk 0:00:09]}  f4 {[%clk 0:00:43]} 33. Bb6 {[%clk 0:00:08]}  Rb8 {[%clk 0:00:41]} 34. Ba5 {[%clk 0:00:07]}  e5 {[%clk 0:00:31]} 35. Kd3 {[%clk 0:00:07]}  Rd4+ {[%clk 0:00:30]} 36. Kc2 {[%clk 0:00:07]}  Rxd2+ {[%clk 0:00:30]} 37. Kxd2 {[%clk 0:00:07]}  Rxb2+ {[%clk 0:00:31]} 0-1


[Site "https://www.chess.com"]

[Event "Titled Tuesday Blitz January 03 Late 2023"]
[White "Golizadeh, Asghar"]
[Black "Derige Kane, Yan"]
[WhiteFideId "12505269"]
[BlackFideId "20665431"]
[WhiteElo "2455"]
[BlackElo "2204"]
[Result "0-1"]
[Round "04"]
[TimeControl "180+2"]
[Date "2023.01.03"]
[WhiteClock "0:00:05"]
[BlackClock "0:00:18"]

1. Nf3 {[%clk 0:03:00]}  Nf6 {[%clk 0:02:55]} 2. g3 {[%clk 0:03:01]}  g6 {[%clk 0:02:55]} 3. Bg2 {[%clk 0:03:01]}  Bg7 {[%clk 0:02:56]} 4. d4 {[%clk 0:03:00]}  O-O {[%clk 0:02:55]} 5. Nbd2 {[%clk 0:02:59]}  c5 {[%clk 0:02:52]} 6. dxc5 {[%clk 0:02:58]}  Qa5 {[%clk 0:02:52]} 7. a3 {[%clk 0:02:53]}  Qxc5 {[%clk 0:02:52]} 8. b4 {[%clk 0:02:54]}  Qc3 {[%clk 0:02:49]} 9. Rb1 {[%clk 0:02:54]}  d6 {[%clk 0:02:50]} 10. Bb2 {[%clk 0:02:53]}  Qc7 {[%clk 0:02:50]} 11. c4 {[%clk 0:02:50]}  b6 {[%clk 0:02:50]} 12. Nd4 {[%clk 0:02:45]}  Bb7 {[%clk 0:02:50]} 13. Nb5 {[%clk 0:02:45]}  Qc8 {[%clk 0:02:51]} 14. Bxb7 {[%clk 0:02:43]}  Qxb7 {[%clk 0:02:52]} 15. O-O {[%clk 0:02:44]}  h5 {[%clk 0:02:43]} 16. Nf3 {[%clk 0:02:43]}  Nbd7 {[%clk 0:02:43]} 17. Nc3 {[%clk 0:02:36]}  Rac8 {[%clk 0:02:42]} 18. Nd5 {[%clk 0:02:35]}  Nxd5 {[%clk 0:02:41]} 19. cxd5 {[%clk 0:02:34]}  Bxb2 {[%clk 0:02:33]} 20. Rxb2 {[%clk 0:02:34]}  Rc4 {[%clk 0:02:34]} 21. Qd2 {[%clk 0:02:30]}  Kg7 {[%clk 0:02:27]} 22. Rd1 {[%clk 0:02:28]}  Rfc8 {[%clk 0:02:27]} 23. Qg5 {[%clk 0:02:03]}  Nf6 {[%clk 0:02:22]} 24. Nh4 {[%clk 0:02:02]}  Kh7 {[%clk 0:02:13]} 25. Rd3 {[%clk 0:01:50]}  Ne4 {[%clk 0:01:20]} 26. Qf4 {[%clk 0:01:31]}  Nf6 {[%clk 0:00:56]} 27. Qf3 {[%clk 0:01:14]}  Kg7 {[%clk 0:00:38]} 28. Kg2 {[%clk 0:00:59]}  Ng4 {[%clk 0:00:38]} 29. Rdd2 {[%clk 0:00:40]}  Ne5 {[%clk 0:00:34]} 30. Qe3 {[%clk 0:00:40]}  Rc3 {[%clk 0:00:29]} 31. Qg5 {[%clk 0:00:32]}  Kh7 {[%clk 0:00:29]} 32. f4 {[%clk 0:00:19]}  f6 {[%clk 0:00:25]} 33. fxe5 {[%clk 0:00:16]}  fxg5 {[%clk 0:00:25]} 34. Nf3 {[%clk 0:00:14]}  Kh6 {[%clk 0:00:22]} 35. e6 {[%clk 0:00:13]}  Rf8 {[%clk 0:00:18]} 36. h4 {[%clk 0:00:13]}  gxh4 {[%clk 0:00:18]} 37. gxh4 {[%clk 0:00:12]}  Rc4 {[%clk 0:00:17]} 38. Kh3 {[%clk 0:00:10]}  Rff4 {[%clk 0:00:15]} 39. Kg3 {[%clk 0:00:07]}  Rg4+ {[%clk 0:00:15]} 40. Kf2 {[%clk 0:00:06]}  Rgf4 {[%clk 0:00:15]} 41. Kg3 {[%clk 0:00:06]}  Rg4+ {[%clk 0:00:14]} 42. Kf2 {[%clk 0:00:06]}  Qc8 {[%clk 0:00:15]} 43. Ng5 {[%clk 0:00:04]}  Rxg5 {[%clk 0:00:16]} 44. hxg5+ {[%clk 0:00:04]}  Kxg5 {[%clk 0:00:16]} 45. Rd3 {[%clk 0:00:05]}  Qf8+ {[%clk 0:00:16]} 46. Ke1 {[%clk 0:00:03]}  Rc1+ {[%clk 0:00:15]} 47. Kd2 {[%clk 0:00:03]}  Qf1 {[%clk 0:00:14]} 48. Rg3+ {[%clk 0:00:03]}  Kh6 {[%clk 0:00:15]} 49. Ke3 {[%clk 0:00:02]}  Qe1 {[%clk 0:00:14]} 50. Rf3 {[%clk 0:00:02]}  Qc3+ {[%clk 0:00:14]} 51. Kf2 {[%clk 0:00:02]}  Qxb2 {[%clk 0:00:15]} 52. Rf7 {[%clk 0:00:03]}  Rc2 {[%clk 0:00:15]} 53. Rxe7 {[%clk 0:00:03]}  Rxe2+ {[%clk 0:00:16]} 54. Kf3 {[%clk 0:00:03]}  Rf2+ {[%clk 0:00:16]} 55. Ke3 {[%clk 0:00:04]}  Qd2+ {[%clk 0:00:17]} 56. Ke4 {[%clk 0:00:05]}  Rf4# {[%clk 0:00:18]} 0-1


[Site "https://www.chess.com"]

[Event "Titled Tuesday Blitz January 03 Late 2023"]
[White "Sukandar, Irine Kharisma"]
[Black "Polanco Nunez, Yoel Estarling"]
[WhiteFideId "7101937"]
[BlackFideId "6401783"]
[WhiteElo "2390"]
[BlackElo "2162"]
[Result "1-0"]
[Round "04"]
[TimeControl "180+2"]
[Date "2023.01.03"]
[WhiteClock "0:00:24"]
[BlackClock "0:00:37"]

1. e4 {[%clk 0:03:00]}  e5 {[%clk 0:02:57]} 2. Nf3 {[%clk 0:03:00]}  Nc6 {[%clk 0:02:57]} 3. Bb5 {[%clk 0:03:00]}  a6 {[%clk 0:02:57]} 4. Ba4 {[%clk 0:03:00]}  Nf6 {[%clk 0:02:57]} 5. O-O {[%clk 0:02:59]}  Be7 {[%clk 0:02:57]} 6. Qe2 {[%clk 0:02:56]}  d6 {[%clk 0:02:54]} 7. c3 {[%clk 0:02:52]}  O-O {[%clk 0:02:49]} 8. h3 {[%clk 0:02:52]}  b5 {[%clk 0:02:39]} 9. Bc2 {[%clk 0:02:50]}  Bb7 {[%clk 0:02:40]} 10. a3 {[%clk 0:02:43]}  Re8 {[%clk 0:02:35]} 11. d4 {[%clk 0:02:42]}  Bf8 {[%clk 0:02:29]} 12. Rd1 {[%clk 0:02:35]}  Qc8 {[%clk 0:02:11]} 13. d5 {[%clk 0:02:25]}  Ne7 {[%clk 0:02:10]} 14. a4 {[%clk 0:02:25]}  c6 {[%clk 0:02:09]} 15. dxc6 {[%clk 0:02:12]}  Qxc6 {[%clk 0:02:03]} 16. Re1 {[%clk 0:02:03]}  Ng6 {[%clk 0:02:01]} 17. Na3 {[%clk 0:01:57]}  bxa4 {[%clk 0:01:54]} 18. Nb1 {[%clk 0:01:57]}  Red8 {[%clk 0:01:43]} 19. Nbd2 {[%clk 0:01:51]}  a3 {[%clk 0:01:36]} 20. Rxa3 {[%clk 0:01:43]}  d5 {[%clk 0:01:36]} 21. exd5 {[%clk 0:01:43]}  Nxd5 {[%clk 0:01:36]} 22. Ra5 {[%clk 0:01:36]}  Ndf4 {[%clk 0:01:36]} 23. Qe3 {[%clk 0:01:28]}  Rac8 {[%clk 0:01:31]} 24. Be4 {[%clk 0:01:25]}  Qc7 {[%clk 0:01:30]} 25. Bxb7 {[%clk 0:01:25]}  Qxb7 {[%clk 0:01:28]} 26. Qe4 {[%clk 0:01:11]}  Qc7 {[%clk 0:01:26]} 27. Rxa6 {[%clk 0:01:03]}  Nd3 {[%clk 0:01:19]} 28. Ra1 {[%clk 0:00:49]}  Nxe1 {[%clk 0:01:16]} 29. Qxe1 {[%clk 0:00:48]}  f5 {[%clk 0:01:15]} 30. Nf1 {[%clk 0:00:44]}  e4 {[%clk 0:01:09]} 31. Nd4 {[%clk 0:00:43]}  Qf7 {[%clk 0:01:06]} 32. Bg5 {[%clk 0:00:42]}  Re8 {[%clk 0:01:06]} 33. Ng3 {[%clk 0:00:38]}  f4 {[%clk 0:00:55]} 34. Nxe4 {[%clk 0:00:36]}  Qd5 {[%clk 0:00:55]} 35. f3 {[%clk 0:00:33]}  Rxe4 {[%clk 0:00:53]} 36. Qxe4 {[%clk 0:00:33]}  Qxg5 {[%clk 0:00:53]} 37. Qe6+ {[%clk 0:00:33]}  Kh8 {[%clk 0:00:52]} 38. Qxc8 {[%clk 0:00:33]}  h5 {[%clk 0:00:44]} 39. Qf5 {[%clk 0:00:31]}  Qg3 {[%clk 0:00:42]} 40. Qxh5+ {[%clk 0:00:25]}  Kg8 {[%clk 0:00:39]} 41. Ne2 {[%clk 0:00:24]}  Bc5+ {[%clk 0:00:37]} 42. Qxc5 {[%clk 0:00:24]} 1-0


[Site "https://www.chess.com"]

[Event "Titled Tuesday Blitz January 03 Late 2023"]
[White "Silva, Miguel Antonio Neto"]
[Black "SilverCityIndigo"]
[WhiteFideId "1911929"]
[WhiteElo "2204"]
[BlackElo "2335"]
[Result "0-1"]
[Round "04"]
[TimeControl "180+2"]
[Date "2023.01.03"]
[WhiteClock "0:00:05"]
[BlackClock "0:00:16"]

1. e4 {[%clk 0:03:00]}  c5 {[%clk 0:02:59]} 2. Nf3 {[%clk 0:02:59]}  d6 {[%clk 0:03:00]} 3. d4 {[%clk 0:02:59]}  cxd4 {[%clk 0:03:01]} 4. Nxd4 {[%clk 0:02:59]}  Nf6 {[%clk 0:03:01]} 5. Nc3 {[%clk 0:02:59]}  a6 {[%clk 0:03:02]} 6. Bd3 {[%clk 0:02:58]}  Nc6 {[%clk 0:02:56]} 7. Nxc6 {[%clk 0:02:47]}  bxc6 {[%clk 0:02:56]} 8. O-O {[%clk 0:02:47]}  e5 {[%clk 0:02:54]} 9. f4 {[%clk 0:02:46]}  Be7 {[%clk 0:02:53]} 10. Kh1 {[%clk 0:02:45]}  O-O {[%clk 0:02:53]} 11. fxe5 {[%clk 0:02:29]}  dxe5 {[%clk 0:02:52]} 12. Qe2 {[%clk 0:02:27]}  Qb6 {[%clk 0:02:47]} 13. Na4 {[%clk 0:02:18]}  Qb4 {[%clk 0:02:42]} 14. b3 {[%clk 0:02:17]}  Bg4 {[%clk 0:02:32]} 15. Qe1 {[%clk 0:02:11]}  a5 {[%clk 0:02:08]} 16. Bd2 {[%clk 0:02:02]}  Qb7 {[%clk 0:01:36]} 17. Qg3 {[%clk 0:01:47]}  Be6 {[%clk 0:01:24]} 18. Qxe5 {[%clk 0:01:30]}  Rfd8 {[%clk 0:01:19]} 19. Nc5 {[%clk 0:01:19]}  Bxc5 {[%clk 0:01:15]} 20. Qxc5 {[%clk 0:01:13]}  Nxe4 {[%clk 0:01:14]} 21. Bxe4 {[%clk 0:00:57]}  Rxd2 {[%clk 0:01:15]} 22. Rad1 {[%clk 0:00:45]}  Rad8 {[%clk 0:01:12]} 23. Rxd2 {[%clk 0:00:44]}  Rxd2 {[%clk 0:01:13]} 24. Qxa5 {[%clk 0:00:44]}  Rd6 {[%clk 0:00:44]} 25. c4 {[%clk 0:00:25]}  g6 {[%clk 0:00:43]} 26. Qc5 {[%clk 0:00:19]}  Qd7 {[%clk 0:00:43]} 27. Bf3 {[%clk 0:00:19]}  h5 {[%clk 0:00:39]} 28. a4 {[%clk 0:00:19]}  Rd2 {[%clk 0:00:35]} 29. a5 {[%clk 0:00:19]}  Ra2 {[%clk 0:00:35]} 30. Rd1 {[%clk 0:00:16]}  Rd2 {[%clk 0:00:20]} 31. Re1 {[%clk 0:00:12]}  h4 {[%clk 0:00:18]} 32. b4 {[%clk 0:00:11]}  h3 {[%clk 0:00:18]} 33. g3 {[%clk 0:00:10]}  Bg4 {[%clk 0:00:18]} 34. Qe3 {[%clk 0:00:09]}  Rd3 {[%clk 0:00:17]} 35. Qe8+ {[%clk 0:00:08]}  Kg7 {[%clk 0:00:16]} 36. Bxg4 {[%clk 0:00:06]}  Qxg4 {[%clk 0:00:14]} 37. Qe5+ {[%clk 0:00:06]}  Kh7 {[%clk 0:00:15]} 38. Qe2 {[%clk 0:00:05]}  Qxe2 {[%clk 0:00:15]} 39. Rxe2 {[%clk 0:00:05]}  Rd1+ {[%clk 0:00:16]} 0-1


[Site "https://www.chess.com"]

[Event "Titled Tuesday Blitz January 03 Late 2023"]
[White "reevecanada"]
[Black "Torres Dominguez, David"]
[BlackFideId "2220857"]
[WhiteElo "2486"]
[BlackElo "1994"]
[Result "1-0"]
[Round "04"]
[TimeControl "180+2"]
[Date "2023.01.03"]
[WhiteClock "0:00:18"]
[BlackClock "0:00:02"]

1. e4 {[%clk 0:03:00]}  Nc6 {[%clk 0:02:59]} 2. d4 {[%clk 0:02:59]}  e5 {[%clk 0:02:57]} 3. d5 {[%clk 0:02:57]}  Nce7 {[%clk 0:02:56]} 4. d6 {[%clk 0:02:54]}  cxd6 {[%clk 0:02:54]} 5. Nc3 {[%clk 0:02:54]}  Ng6 {[%clk 0:02:49]} 6. g3 {[%clk 0:02:50]}  Nf6 {[%clk 0:02:43]} 7. Bg2 {[%clk 0:02:45]}  d5 {[%clk 0:02:38]} 8. exd5 {[%clk 0:02:41]}  Bb4 {[%clk 0:02:28]} 9. Ne2 {[%clk 0:02:38]}  d6 {[%clk 0:02:24]} 10. h4 {[%clk 0:02:36]}  h6 {[%clk 0:02:12]} 11. a3 {[%clk 0:02:33]}  Ba5 {[%clk 0:02:09]} 12. Be3 {[%clk 0:02:31]}  Bd7 {[%clk 0:01:58]} 13. Qd3 {[%clk 0:02:27]}  O-O {[%clk 0:01:52]} 14. O-O-O {[%clk 0:02:24]}  b5 {[%clk 0:01:46]} 15. Qd2 {[%clk 0:02:08]}  Ng4 {[%clk 0:01:42]} 16. h5 {[%clk 0:02:03]}  Ne7 {[%clk 0:01:34]} 17. f3 {[%clk 0:01:56]}  Nxe3 {[%clk 0:01:34]} 18. Qxe3 {[%clk 0:01:55]}  b4 {[%clk 0:01:32]} 19. axb4 {[%clk 0:01:54]}  Bxb4 {[%clk 0:01:32]} 20. g4 {[%clk 0:01:53]}  Qa5 {[%clk 0:01:25]} 21. Bh3 {[%clk 0:01:34]}  Bc5 {[%clk 0:01:23]} 22. Qe4 {[%clk 0:01:26]}  Rab8 {[%clk 0:01:16]} 23. g5 {[%clk 0:01:25]}  Bxh3 {[%clk 0:01:11]} 24. Rxh3 {[%clk 0:01:23]}  f5 {[%clk 0:00:55]} 25. gxf6 {[%clk 0:01:20]}  Rxf6 {[%clk 0:00:54]} 26. f4 {[%clk 0:01:10]}  Rb4 {[%clk 0:00:45]} 27. Qf3 {[%clk 0:00:44]}  Nf5 {[%clk 0:00:33]} 28. Qd3 {[%clk 0:00:33]}  exf4 {[%clk 0:00:22]} 29. Ne4 {[%clk 0:00:29]}  Be3+ {[%clk 0:00:17]} 30. Rxe3 {[%clk 0:00:27]}  Rf7 {[%clk 0:00:15]} 31. Rf3 {[%clk 0:00:23]}  Rfb7 {[%clk 0:00:09]} 32. b3 {[%clk 0:00:22]}  Qa3+ {[%clk 0:00:06]} 33. Kd2 {[%clk 0:00:22]}  Qa5 {[%clk 0:00:05]} 34. N2c3 {[%clk 0:00:20]}  Ne3 {[%clk 0:00:02]} 35. Rg1 {[%clk 0:00:18]} 1-0


[Site "https://www.chess.com"]

[Event "Titled Tuesday Blitz January 03 Late 2023"]
[White "Papayan, Oleg"]
[Black "Fernandez Hernandez, Gerardo"]
[WhiteFideId "4193911"]
[BlackFideId "2207400"]
[WhiteElo "2253"]
[BlackElo "2181"]
[Result "0-1"]
[Round "04"]
[TimeControl "180+2"]
[Date "2023.01.03"]
[WhiteClock "0:00:01"]
[BlackClock "0:00:15"]

1. e4 {[%clk 0:03:00]}  e6 {[%clk 0:02:59]} 2. d4 {[%clk 0:02:58]}  d5 {[%clk 0:03:00]} 3. Nc3 {[%clk 0:02:58]}  Nc6 {[%clk 0:03:00]} 4. e5 {[%clk 0:02:56]}  f6 {[%clk 0:03:00]} 5. Nf3 {[%clk 0:02:55]}  fxe5 {[%clk 0:02:50]} 6. Nxe5 {[%clk 0:02:56]}  Nf6 {[%clk 0:02:40]} 7. Bb5 {[%clk 0:02:47]}  Bd7 {[%clk 0:02:39]} 8. Bxc6 {[%clk 0:02:46]}  Bxc6 {[%clk 0:02:25]} 9. Qe2 {[%clk 0:02:45]}  Bd7 {[%clk 0:02:04]} 10. Bg5 {[%clk 0:02:38]}  Bd6 {[%clk 0:01:54]} 11. Nxd5 {[%clk 0:02:31]}  O-O {[%clk 0:01:20]} 12. Nxd7 {[%clk 0:02:14]}  Qxd7 {[%clk 0:01:14]} 13. Nxf6+ {[%clk 0:02:14]}  gxf6 {[%clk 0:01:14]} 14. Bh6 {[%clk 0:02:09]}  Rfe8 {[%clk 0:01:09]} 15. O-O-O {[%clk 0:01:52]}  Qf7 {[%clk 0:00:54]} 16. Qg4+ {[%clk 0:01:39]}  Qg6 {[%clk 0:00:48]} 17. Qxg6+ {[%clk 0:01:16]}  hxg6 {[%clk 0:00:49]} 18. h4 {[%clk 0:01:06]}  Kf7 {[%clk 0:00:44]} 19. Rh3 {[%clk 0:00:58]}  c6 {[%clk 0:00:40]} 20. c4 {[%clk 0:00:54]}  b5 {[%clk 0:00:33]} 21. b3 {[%clk 0:00:24]}  a5 {[%clk 0:00:26]} 22. Bd2 {[%clk 0:00:14]}  a4 {[%clk 0:00:24]} 23. c5 {[%clk 0:00:13]}  Bc7 {[%clk 0:00:23]} 24. b4 {[%clk 0:00:14]}  Rad8 {[%clk 0:00:21]} 25. Be3 {[%clk 0:00:08]}  Rd5 {[%clk 0:00:21]} 26. h5 {[%clk 0:00:07]}  Rxh5 {[%clk 0:00:18]} 27. Rdh1 {[%clk 0:00:07]}  Reh8 {[%clk 0:00:17]} 28. Rxh5 {[%clk 0:00:07]}  Rxh5 {[%clk 0:00:17]} 29. Rxh5 {[%clk 0:00:06]}  gxh5 {[%clk 0:00:18]} 30. Kd2 {[%clk 0:00:02]}  Kg6 {[%clk 0:00:17]} 31. Ke2 {[%clk 0:00:03]}  Kf5 {[%clk 0:00:17]} 32. Kf3 {[%clk 0:00:03]}  e5 {[%clk 0:00:16]} 33. g3 {[%clk 0:00:01]}  e4+ {[%clk 0:00:16]} 34. Kg2 {[%clk 0:00:01]}  Ke6 {[%clk 0:00:15]} 0-1


[Site "https://www.chess.com"]

[Event "Titled Tuesday Blitz January 03 Late 2023"]
[White "Yeritsyan, Hayk"]
[Black "Nissinen, Niilo Man"]
[WhiteFideId "13307320"]
[BlackFideId "30950767"]
[WhiteElo "2241"]
[BlackElo "1958"]
[Result "1-0"]
[Round "04"]
[TimeControl "180+2"]
[Date "2023.01.03"]
[WhiteClock "0:00:46"]
[BlackClock "0:00:36"]

1. d4 {[%clk 0:02:41]}  Nf6 {[%clk 0:02:59]} 2. Nf3 {[%clk 0:02:42]}  b6 {[%clk 0:02:57]} 3. e3 {[%clk 0:02:40]}  Bb7 {[%clk 0:02:57]} 4. Bd3 {[%clk 0:02:41]}  e6 {[%clk 0:02:57]} 5. Nbd2 {[%clk 0:02:41]}  Be7 {[%clk 0:02:55]} 6. O-O {[%clk 0:02:41]}  O-O {[%clk 0:02:55]} 7. Qe2 {[%clk 0:02:41]}  d5 {[%clk 0:02:53]} 8. Ne5 {[%clk 0:02:41]}  h6 {[%clk 0:02:52]} 9. f4 {[%clk 0:02:41]}  Nbd7 {[%clk 0:02:53]} 10. Qf3 {[%clk 0:02:41]}  c5 {[%clk 0:02:52]} 11. c3 {[%clk 0:02:41]}  Nxe5 {[%clk 0:02:45]} 12. fxe5 {[%clk 0:02:40]}  Nd7 {[%clk 0:02:45]} 13. Qh3 {[%clk 0:02:28]}  Re8 {[%clk 0:02:01]} 14. Nf3 {[%clk 0:02:12]}  Nf8 {[%clk 0:02:00]} 15. g4 {[%clk 0:02:12]}  f6 {[%clk 0:01:51]} 16. exf6 {[%clk 0:02:03]}  Bxf6 {[%clk 0:01:52]} 17. Qg3 {[%clk 0:01:57]}  Qb8 {[%clk 0:01:47]} 18. Qh3 {[%clk 0:01:52]}  Qd8 {[%clk 0:01:44]} 19. Bd2 {[%clk 0:01:52]}  a5 {[%clk 0:01:43]} 20. Rf2 {[%clk 0:01:49]}  Ba6 {[%clk 0:01:42]} 21. Bc2 {[%clk 0:01:49]}  Nh7 {[%clk 0:01:36]} 22. Rg2 {[%clk 0:01:15]}  Ng5 {[%clk 0:01:35]} 23. Nxg5 {[%clk 0:01:13]}  Bxg5 {[%clk 0:01:36]} 24. Qh5 {[%clk 0:01:11]}  Qf6 {[%clk 0:01:24]} 25. Rf2 {[%clk 0:01:06]}  g6 {[%clk 0:01:10]} 26. Bxg6 {[%clk 0:00:54]}  Qe7 {[%clk 0:01:10]} 27. Rf7 {[%clk 0:00:46]}  Ra7 {[%clk 0:00:36]} 1-0


[Site "https://www.chess.com"]